[Event "Late-Titled-Tuesday-Blitz-February-27-2024"]
[Site "Chess.com"]
[Date "2024.02.27"]
[Round "2"]
[White "laskakid"]
[Black "KNVB"]
[Result "0-1"]
[WhiteElo "2403"]
[BlackElo "2835"]
[TimeControl "180+1"]
[EndTime "14:18:21 PST"]
[Termination "KNVB won by resignation"]

1. d4 {[%clk 0:03:00.9]} 1... Nf6 {[%clk 0:02:52]} 2. Bg5 {[%clk 0:03:00.4]}
2... d5 {[%clk 0:02:50.3]} 3. e3 {[%clk 0:03:00]} 3... Ne4 {[%clk 0:02:40.1]} 4.
Bf4 {[%clk 0:02:58.4]} 4... e6 {[%clk 0:02:19.3]} 5. Nd2 {[%clk 0:02:56.7]} 5...
Nxd2 {[%clk 0:02:18.4]} 6. Qxd2 {[%clk 0:02:56.8]} 6... Bd6 {[%clk 0:02:18.8]}
7. Nf3 {[%clk 0:02:55]} 7... Nc6 {[%clk 0:02:07.6]} 8. c3 {[%clk 0:02:51.1]}
8... Qe7 {[%clk 0:02:01]} 9. Be2 {[%clk 0:02:45.1]} 9... O-O {[%clk 0:01:58.4]}
10. O-O {[%clk 0:02:43.7]} 10... Bd7 {[%clk 0:01:46.5]} 11. h3 {[%clk
0:02:38.6]} 11... Rad8 {[%clk 0:01:43.6]} 12. Bxd6 {[%clk 0:02:24.3]} 12... cxd6
{[%clk 0:01:26.3]} 13. c4 {[%clk 0:02:23]} 13... dxc4 {[%clk 0:01:22.7]} 14.
Bxc4 {[%clk 0:02:22.2]} 14... Qf6 {[%clk 0:00:55.5]} 15. Rfd1 {[%clk 0:02:04.8]}
15... Ne7 {[%clk 0:00:49.3]} 16. e4 {[%clk 0:01:51.8]} 16... Ng6 {[%clk
0:00:45.3]} 17. Qe3 {[%clk 0:01:48.3]} 17... e5 {[%clk 0:00:33.6]} 18. dxe5
{[%clk 0:01:42]} 18... dxe5 {[%clk 0:00:34.5]} 19. Bf1 {[%clk 0:01:27.4]} 19...
b6 {[%clk 0:00:23.3]} 20. Kh2 {[%clk 0:01:26.2]} 20... Be6 {[%clk 0:00:20.9]}
21. b3 {[%clk 0:01:18.8]} 21... h6 {[%clk 0:00:20.3]} 22. Rac1 {[%clk
0:01:15.5]} 22... Rxd1 {[%clk 0:00:18.2]} 23. Rxd1 {[%clk 0:01:15.5]} 23... Rd8
{[%clk 0:00:19.1]} 24. Rd2 {[%clk 0:01:07.2]} 24... Qe7 {[%clk 0:00:17.6]} 25.
Qc3 {[%clk 0:01:05.5]} 25... Rxd2 {[%clk 0:00:16.5]} 26. Nxd2 {[%clk 0:01:03.3]}
26... Qd6 {[%clk 0:00:10.4]} 27. Bc4 {[%clk 0:00:56.9]} 27... Bd7 {[%clk
0:00:10.7]} 28. Nf3 {[%clk 0:00:54.4]} 28... Kf8 {[%clk 0:00:08.3]} 29. Bd5
{[%clk 0:00:51.9]} 29... Ke7 {[%clk 0:00:05.2]} 30. Qc4 {[%clk 0:00:50]} 30...
Be8 {[%clk 0:00:04.9]} 31. h4 {[%clk 0:00:45.8]} 31... Nf4 {[%clk 0:00:04.3]}
32. g3 {[%clk 0:00:27.9]} 32... Nxd5 {[%clk 0:00:03.1]} 33. exd5 {[%clk
0:00:28.4]} 33... f6 {[%clk 0:00:02.4]} 34. Qe4 {[%clk 0:00:25.1]} 34... Bf7
{[%clk 0:00:02.3]} 35. Qh7 {[%clk 0:00:23.3]} 35... Qxd5 {[%clk 0:00:01.5]} 36.
Ng1 {[%clk 0:00:17.8]} 36... Kf8 {[%clk 0:00:01.7]} 37. Qf5 {[%clk 0:00:15.7]}
37... Qe6 {[%clk 0:00:01.9]} 38. Qd3 {[%clk 0:00:15.4]} 38... Qe7 {[%clk
0:00:02]} 39. Qe4 {[%clk 0:00:15.6]} 39... Be6 {[%clk 0:00:02.2]} 40. Qa8+
{[%clk 0:00:14.8]} 40... Kf7 {[%clk 0:00:02.9]} 41. Nf3 {[%clk 0:00:14.4]} 41...
Bg4 {[%clk 0:00:02.5]} 42. Nd2 {[%clk 0:00:14.1]} 42... Qd7 {[%clk 0:00:02.8]}
43. Ne4 {[%clk 0:00:13.6]} 43... Kg6 {[%clk 0:00:03.5]} 44. Qg8 {[%clk
0:00:10.2]} 44... h5 {[%clk 0:00:03]} 45. Qf8 {[%clk 0:00:09.2]} 45... Bf3
{[%clk 0:00:03]} 46. Ng5 {[%clk 0:00:07.7]} 46... fxg5 {[%clk 0:00:01.5]} 47.
Qxf3 {[%clk 0:00:07.4]} 47... gxh4 {[%clk 0:00:02.1]} 48. Qe4+ {[%clk
0:00:07.5]} 48... Qf5 {[%clk 0:00:02.1]} 49. Qg2 {[%clk 0:00:05.8]} 49... hxg3+
{[%clk 0:00:01.7]} 50. Qxg3+ {[%clk 0:00:05.8]} 50... Kf6 {[%clk 0:00:02.1]} 51.
Qe3 {[%clk 0:00:06]} 51... Qf4+ {[%clk 0:00:02.5]} 52. Qxf4+ {[%clk 0:00:05.8]}
52... exf4 {[%clk 0:00:03.4]} 53. Kh3 {[%clk 0:00:05.7]} 53... Kf5 {[%clk
0:00:04.1]} 54. Kh4 {[%clk 0:00:06.1]} 54... g6 {[%clk 0:00:04.8]} 55. Kh3
{[%clk 0:00:06]} 55... g5 {[%clk 0:00:04.6]} 56. Kg2 {[%clk 0:00:05.4]} 56...
Ke4 {[%clk 0:00:04.9]} 0-1

[Event "Late-Titled-Tuesday-Blitz-February-27-2024"]
[Site "Chess.com"]
[Date "2024.02.27"]
[Round "2"]
[White "szachmistrz2500"]
[Black "Alphafischer2019"]
[Result "0-1"]
[WhiteElo "2417"]
[BlackElo "2699"]
[TimeControl "180+1"]
[EndTime "14:18:22 PST"]
[Termination "Alphafischer2019 won on time"]

1. d4 {[%clk 0:03:00.9]} 1... Nf6 {[%clk 0:03:00.1]} 2. c4 {[%clk 0:02:59.7]}
2... b6 {[%clk 0:02:58.6]} 3. Nc3 {[%clk 0:02:58.5]} 3... Bb7 {[%clk 0:02:58.4]}
4. f3 {[%clk 0:02:56.5]} 4... d5 {[%clk 0:02:57.8]} 5. cxd5 {[%clk 0:02:56.1]}
5... Nxd5 {[%clk 0:02:58.7]} 6. e4 {[%clk 0:02:56.1]} 6... Nxc3 {[%clk
0:02:58.2]} 7. bxc3 {[%clk 0:02:56.4]} 7... e6 {[%clk 0:02:58.1]} 8. Bb5+ {[%clk
0:02:52.2]} 8... c6 {[%clk 0:02:57.8]} 9. Bc4 {[%clk 0:02:50.1]} 9... Be7 {[%clk
0:02:56.3]} 10. Ne2 {[%clk 0:02:49.4]} 10... c5 {[%clk 0:02:56]} 11. O-O {[%clk
0:02:41.4]} 11... cxd4 {[%clk 0:02:56.1]} 12. cxd4 {[%clk 0:02:40.6]} 12... O-O
{[%clk 0:02:56.2]} 13. Be3 {[%clk 0:02:39.5]} 13... Nc6 {[%clk 0:02:56.5]} 14.
Qd2 {[%clk 0:02:38.7]} 14... Na5 {[%clk 0:02:56.4]} 15. Bd3 {[%clk 0:02:36]}
15... Rc8 {[%clk 0:02:57]} 16. Rac1 {[%clk 0:02:35]} 16... Qd7 {[%clk
0:02:57.6]} 17. Rxc8 {[%clk 0:02:27.8]} 17... Rxc8 {[%clk 0:02:56.3]} 18. Rc1
{[%clk 0:02:28.2]} 18... h6 {[%clk 0:02:40.3]} 19. Rc3 {[%clk 0:02:21]} 19...
Nc6 {[%clk 0:02:35.1]} 20. Rc1 {[%clk 0:01:57.4]} 20... Ba3 {[%clk 0:02:31.7]}
21. Rc2 {[%clk 0:01:54]} 21... Nb4 {[%clk 0:02:18.5]} 22. Rxc8+ {[%clk
0:01:51.7]} 22... Qxc8 {[%clk 0:02:19.4]} 23. Bb5 {[%clk 0:01:44.6]} 23... a6
{[%clk 0:02:11.3]} 24. Ba4 {[%clk 0:01:44.6]} 24... b5 {[%clk 0:02:10.6]} 25.
Bb3 {[%clk 0:01:44.6]} 25... a5 {[%clk 0:02:07.1]} 26. Nc3 {[%clk 0:01:22.1]}
26... Nc6 {[%clk 0:01:22.9]} 27. d5 {[%clk 0:01:20.2]} 27... exd5 {[%clk
0:01:20.3]} 28. Qxd5 {[%clk 0:01:15.9]} 28... Nd8 {[%clk 0:01:15.4]} 29. Qd3
{[%clk 0:01:07.7]} 29... Ba6 {[%clk 0:00:51.6]} 30. Nd5 {[%clk 0:01:03.8]} 30...
Ne6 {[%clk 0:00:48.2]} 31. Nb6 {[%clk 0:00:52.3]} 31... Qc6 {[%clk 0:00:36.9]}
32. h3 {[%clk 0:00:41.1]} 32... Bc5 {[%clk 0:00:35.7]} 33. Nd5 {[%clk
0:00:36.1]} 33... a4 {[%clk 0:00:30.5]} 34. Bc2 {[%clk 0:00:24.6]} 34... b4
{[%clk 0:00:30]} 35. Qd2 {[%clk 0:00:20.5]} 35... Bxe3+ {[%clk 0:00:28]} 36.
Nxe3 {[%clk 0:00:20.6]} 36... Qc5 {[%clk 0:00:24.9]} 37. Kh2 {[%clk 0:00:19.5]}
37... Bb5 {[%clk 0:00:21]} 38. Nf5 {[%clk 0:00:18.6]} 38... Qc7+ {[%clk
0:00:17.5]} 39. Kh1 {[%clk 0:00:16.9]} 39... Nf4 {[%clk 0:00:14.2]} 40. Bd1
{[%clk 0:00:07.5]} 40... Bf1 {[%clk 0:00:13.9]} 41. g3 {[%clk 0:00:06.2]} 41...
Nxh3 {[%clk 0:00:11.5]} 42. f4 {[%clk 0:00:06.6]} 42... Bb5 {[%clk 0:00:06.8]}
43. Kh2 {[%clk 0:00:06.1]} 43... Nxf4 {[%clk 0:00:06.3]} 44. Qxf4 {[%clk
0:00:05.1]} 44... Qd8 {[%clk 0:00:04.2]} 45. Nd6 {[%clk 0:00:04.8]} 45... Be8
{[%clk 0:00:03.5]} 46. Qe5 {[%clk 0:00:04.3]} 46... Bd7 {[%clk 0:00:02.8]} 47.
Qf4 {[%clk 0:00:04.1]} 47... Be6 {[%clk 0:00:03.3]} 48. Nf5 {[%clk 0:00:04.4]}
48... Qd7 {[%clk 0:00:03.7]} 49. Bf3 {[%clk 0:00:03.4]} 49... b3 {[%clk
0:00:04]} 50. Qg4 {[%clk 0:00:03.5]} 50... Bxf5 {[%clk 0:00:03]} 51. exf5 {[%clk
0:00:03.7]} 51... bxa2 {[%clk 0:00:03.6]} 0-1

[Event "Late-Titled-Tuesday-Blitz-February-27-2024"]
[Site "Chess.com"]
[Date "2024.02.27"]
[Round "2"]
[White "jaskol95"]
[Black "kripri"]
[Result "1-0"]
[WhiteElo "2550"]
[BlackElo "2347"]
[TimeControl "180+1"]
[EndTime "14:18:22 PST"]
[Termination "jaskol95 won by resignation"]

1. e4 {[%clk 0:03:00.9]} 1... c6 {[%clk 0:02:58.9]} 2. d4 {[%clk 0:02:51.2]}
2... d5 {[%clk 0:02:59]} 3. e5 {[%clk 0:02:51.6]} 3... c5 {[%clk 0:02:58.9]} 4.
dxc5 {[%clk 0:02:51.5]} 4... e6 {[%clk 0:02:58.6]} 5. a3 {[%clk 0:02:52.2]} 5...
Bxc5 {[%clk 0:02:58.9]} 6. b4 {[%clk 0:02:52.6]} 6... Bb6 {[%clk 0:02:59.6]} 7.
Bb2 {[%clk 0:02:52]} 7... Ne7 {[%clk 0:03:00.1]} 8. Nf3 {[%clk 0:02:51.3]} 8...
Nbc6 {[%clk 0:03:00.5]} 9. Bd3 {[%clk 0:02:51.4]} 9... Ng6 {[%clk 0:02:59.6]}
10. h4 {[%clk 0:02:50]} 10... Nf4 {[%clk 0:02:59.1]} 11. Bf1 {[%clk 0:02:45.5]}
11... O-O {[%clk 0:02:55.7]} 12. g3 {[%clk 0:02:45.6]} 12... Ng6 {[%clk
0:02:53.7]} 13. h5 {[%clk 0:02:44.7]} 13... Nge7 {[%clk 0:02:53.6]} 14. Bd3
{[%clk 0:02:44.7]} 14... h6 {[%clk 0:02:53.2]} 15. Nbd2 {[%clk 0:02:41.5]} 15...
d4 {[%clk 0:02:30]} 16. Qe2 {[%clk 0:02:28.5]} 16... Nd5 {[%clk 0:02:16.1]} 17.
Qe4 {[%clk 0:01:50.6]} 17... f5 {[%clk 0:02:10.6]} 18. exf6 {[%clk 0:01:51.5]}
18... Nxf6 {[%clk 0:02:10.4]} 19. Qg6 {[%clk 0:01:32.5]} 19... Ne7 {[%clk
0:02:06.5]} 20. Ne5 {[%clk 0:01:09.1]} 20... Nxg6 {[%clk 0:02:06.1]} 21. Nxg6
{[%clk 0:01:08.9]} 21... Re8 {[%clk 0:02:02.6]} 22. Nc4 {[%clk 0:01:09.5]} 22...
Bc7 {[%clk 0:02:01.5]} 23. f4 {[%clk 0:01:09.3]} 23... b5 {[%clk 0:01:54.1]} 24.
Nce5 {[%clk 0:01:09.2]} 24... Qd5 {[%clk 0:01:48.2]} 25. O-O-O {[%clk
0:01:08.3]} 25... a5 {[%clk 0:01:45.7]} 26. g4 {[%clk 0:00:55.9]} 26... axb4
{[%clk 0:01:45.3]} 27. axb4 {[%clk 0:00:52.1]} 27... Nd7 {[%clk 0:01:31.8]} 28.
g5 {[%clk 0:00:41.5]} 28... Nxe5 {[%clk 0:01:29.3]} 29. fxe5 {[%clk 0:00:42]}
29... Bxe5 {[%clk 0:01:25]} 30. gxh6 {[%clk 0:00:41.2]} 30... gxh6 {[%clk
0:01:22.9]} 31. Rhg1 {[%clk 0:00:39]} 31... Bg7 {[%clk 0:01:19.7]} 32. Rdf1
{[%clk 0:00:25.6]} 32... e5 {[%clk 0:01:08.9]} 33. Rf8+ {[%clk 0:00:22.3]} 33...
Bxf8 {[%clk 0:00:53]} 34. Ne7+ {[%clk 0:00:19.9]} 34... Kf7 {[%clk 0:00:53.4]}
35. Nxd5 {[%clk 0:00:19.7]} 35... Rd8 {[%clk 0:00:34.1]} 36. Bg6+ {[%clk
0:00:19]} 36... Ke6 {[%clk 0:00:31.2]} 37. Nc7+ {[%clk 0:00:18.3]} 37... Kd6
{[%clk 0:00:28.6]} 38. Nxa8 {[%clk 0:00:18.7]} 38... Bb7 {[%clk 0:00:22.4]} 39.
Nb6 {[%clk 0:00:19]} 39... Kc6 {[%clk 0:00:22.8]} 40. Re1 {[%clk 0:00:09.1]}
40... Bd6 {[%clk 0:00:17.8]} 41. Be4+ {[%clk 0:00:09.1]} 41... Kxb6 {[%clk
0:00:17.9]} 42. Bxb7 {[%clk 0:00:10]} 42... Kxb7 {[%clk 0:00:18.5]} 43. Kd2
{[%clk 0:00:10.4]} 43... Rf8 {[%clk 0:00:18.4]} 44. Kd3 {[%clk 0:00:10.6]} 44...
Kc6 {[%clk 0:00:17.4]} 45. Rg1 {[%clk 0:00:09.9]} 45... Kd5 {[%clk 0:00:16.8]}
46. Bc1 {[%clk 0:00:10.3]} 46... Rf3+ {[%clk 0:00:16.9]} 47. Ke2 {[%clk
0:00:10.7]} 47... Rf5 {[%clk 0:00:16.7]} 48. Rg6 {[%clk 0:00:10.7]} 48... Rxh5
{[%clk 0:00:16.6]} 49. Bxh6 {[%clk 0:00:10.7]} 49... Rh2+ {[%clk 0:00:17]} 50.
Kd1 {[%clk 0:00:10.1]} 50... e4 {[%clk 0:00:16.2]} 51. Rxd6+ {[%clk 0:00:10.4]}
51... Kxd6 {[%clk 0:00:15.9]} 52. Bf4+ {[%clk 0:00:10.8]} 52... Kd5 {[%clk
0:00:16.4]} 53. Bxh2 {[%clk 0:00:11.5]} 53... Kc4 {[%clk 0:00:16.2]} 54. Bd6
{[%clk 0:00:12.2]} 54... d3 {[%clk 0:00:11.4]} 55. cxd3+ {[%clk 0:00:12]} 55...
exd3 {[%clk 0:00:11.2]} 56. Bc5 {[%clk 0:00:12.1]} 56... Kc3 {[%clk 0:00:10.7]}
57. Kc1 {[%clk 0:00:12.7]} 57... Kb3 {[%clk 0:00:08.7]} 58. Kd2 {[%clk 0:00:13]}
58... Kc4 {[%clk 0:00:09.3]} 59. Bf8 {[%clk 0:00:12.9]} 59... Kb3 {[%clk
0:00:09.4]} 60. Kxd3 {[%clk 0:00:12.5]} 60... Ka4 {[%clk 0:00:09.7]} 61. Kd4
{[%clk 0:00:12.8]} 61... Kb3 {[%clk 0:00:10]} 62. Kc5 {[%clk 0:00:13.4]} 62...
Ka4 {[%clk 0:00:10.5]} 63. Be7 {[%clk 0:00:14]} 63... Kb3 {[%clk 0:00:10.4]} 64.
Kxb5 {[%clk 0:00:14.9]} 64... Ka3 {[%clk 0:00:11]} 65. Bc5 {[%clk 0:00:15]} 1-0

[Event "Late-Titled-Tuesday-Blitz-February-27-2024"]
[Site "Chess.com"]
[Date "2024.02.27"]
[Round "2"]
[White "ritanovikova"]
[Black "Journey_to_GrandMaster_YT"]
[Result "0-1"]
[WhiteElo "2236"]
[BlackElo "2499"]
[TimeControl "180+1"]
[EndTime "14:18:22 PST"]
[Termination "Journey_to_GrandMaster_YT won on time"]

1. e4 {[%clk 0:02:57.2]} 1... d6 {[%clk 0:03:00.9]} 2. d4 {[%clk 0:02:57.2]}
2... Nf6 {[%clk 0:03:01.4]} 3. Nc3 {[%clk 0:02:57.8]} 3... e5 {[%clk 0:03:02]}
4. dxe5 {[%clk 0:02:56.3]} 4... dxe5 {[%clk 0:03:02.9]} 5. Qxd8+ {[%clk
0:02:56.7]} 5... Kxd8 {[%clk 0:03:03.8]} 6. h3 {[%clk 0:02:54]} 6... Be6 {[%clk
0:02:58.1]} 7. Be3 {[%clk 0:02:53.8]} 7... Nbd7 {[%clk 0:02:57.4]} 8. O-O-O
{[%clk 0:02:53.1]} 8... c6 {[%clk 0:02:57.8]} 9. g4 {[%clk 0:02:50.5]} 9... Bb4
{[%clk 0:02:51.4]} 10. Nge2 {[%clk 0:02:40.5]} 10... h6 {[%clk 0:02:43.7]} 11.
a3 {[%clk 0:02:34.4]} 11... Ba5 {[%clk 0:02:42.2]} 12. Bc5 {[%clk 0:02:30.5]}
12... Bb6 {[%clk 0:02:09.1]} 13. Bxb6+ {[%clk 0:02:17.4]} 13... axb6 {[%clk
0:02:08.4]} 14. f4 {[%clk 0:02:10.3]} 14... exf4 {[%clk 0:02:03.7]} 15. Nxf4
{[%clk 0:02:11.2]} 15... Ke7 {[%clk 0:02:01.5]} 16. Nd3 {[%clk 0:01:50.3]} 16...
Nc5 {[%clk 0:01:58.7]} 17. Bg2 {[%clk 0:01:47.4]} 17... Nfd7 {[%clk 0:01:53.9]}
18. Rhe1 {[%clk 0:01:38.4]} 18... f6 {[%clk 0:01:52.2]} 19. Nf4 {[%clk
0:01:36.1]} 19... Ne5 {[%clk 0:01:49.9]} 20. Nce2 {[%clk 0:01:31.5]} 20... Rhd8
{[%clk 0:01:13.8]} 21. Nd4 {[%clk 0:01:30.6]} 21... Rd7 {[%clk 0:01:06.6]} 22.
b4 {[%clk 0:01:20.4]} 22... Rxa3 {[%clk 0:00:52.2]} 23. bxc5 {[%clk 0:01:12.4]}
23... Ra1+ {[%clk 0:00:39.3]} 24. Kb2 {[%clk 0:01:11.1]} 24... Rxd1 {[%clk
0:00:36.8]} 25. Rxd1 {[%clk 0:01:12]} 25... Nc4+ {[%clk 0:00:26.1]} 26. Kc1
{[%clk 0:01:08.6]} 26... Ne3 {[%clk 0:00:25.5]} 27. Rd2 {[%clk 0:00:51.2]} 27...
Nxg2 {[%clk 0:00:17.9]} 28. Nxg2 {[%clk 0:00:47.7]} 28... bxc5 {[%clk
0:00:15.9]} 29. Nxe6 {[%clk 0:00:39.5]} 29... Rxd2 {[%clk 0:00:15.9]} 30. Kxd2
{[%clk 0:00:40.4]} 30... Kxe6 {[%clk 0:00:16.4]} 31. Nf4+ {[%clk 0:00:37.9]}
31... Ke5 {[%clk 0:00:15.9]} 32. Ke3 {[%clk 0:00:31.3]} 32... c4 {[%clk
0:00:12.1]} 33. Nh5 {[%clk 0:00:27.5]} 33... g6 {[%clk 0:00:09.2]} 34. Nf4
{[%clk 0:00:26.4]} 34... g5 {[%clk 0:00:09.4]} 35. Ne2 {[%clk 0:00:23.7]} 35...
b5 {[%clk 0:00:09]} 36. Nd4 {[%clk 0:00:24.2]} 36... c5 {[%clk 0:00:08.9]} 37.
Nf5 {[%clk 0:00:24.1]} 37... b4 {[%clk 0:00:09.3]} 38. Nxh6 {[%clk 0:00:19.6]}
38... b3 {[%clk 0:00:09.7]} 39. cxb3 {[%clk 0:00:18.5]} 39... cxb3 {[%clk
0:00:10.5]} 40. Kd3 {[%clk 0:00:18.4]} 40... c4+ {[%clk 0:00:10.2]} 41. Kc3
{[%clk 0:00:17]} 41... Kxe4 {[%clk 0:00:10.6]} 42. Ng8 {[%clk 0:00:16.2]} 42...
Ke5 {[%clk 0:00:09.2]} 43. Ne7 {[%clk 0:00:13.3]} 43... Ke4 {[%clk 0:00:09.2]}
44. Ng8 {[%clk 0:00:12.9]} 44... f5 {[%clk 0:00:08.8]} 45. gxf5 {[%clk
0:00:09.3]} 45... Kxf5 {[%clk 0:00:09.1]} 46. Ne7+ {[%clk 0:00:08.6]} 46... Kf4
{[%clk 0:00:09.4]} 47. Nd5+ {[%clk 0:00:05.5]} 47... Kg3 {[%clk 0:00:09.7]} 48.
Ne3 {[%clk 0:00:04.8]} 48... Kxh3 {[%clk 0:00:08.2]} 49. Nxc4 {[%clk 0:00:03.3]}
49... g4 {[%clk 0:00:08.6]} 50. Ne3 {[%clk 0:00:03.1]} 50... g3 {[%clk
0:00:08.8]} 51. Kxb3 {[%clk 0:00:01.7]} 51... Kh4 {[%clk 0:00:09.3]} 0-1

[Event "Late-Titled-Tuesday-Blitz-February-27-2024"]
[Site "Chess.com"]
[Date "2024.02.27"]
[Round "2"]
[White "kasparicy"]
[Black "Rud_2008"]
[Result "0-1"]
[WhiteElo "2500"]
[BlackElo "2717"]
[TimeControl "180+1"]
[EndTime "14:18:23 PST"]
[Termination "Rud_2008 won by resignation"]

1. d4 {[%clk 0:03:00.9]} 1... Nf6 {[%clk 0:02:59.5]} 2. Bf4 {[%clk 0:02:51.9]}
2... d5 {[%clk 0:02:59.5]} 3. e3 {[%clk 0:02:48.3]} 3... e6 {[%clk 0:02:55.8]}
4. Nc3 {[%clk 0:02:47.9]} 4... c5 {[%clk 0:02:45.9]} 5. Nb5 {[%clk 0:02:46.7]}
5... Na6 {[%clk 0:02:45.4]} 6. c3 {[%clk 0:02:46.3]} 6... Be7 {[%clk 0:02:43.1]}
7. a4 {[%clk 0:02:43.7]} 7... O-O {[%clk 0:02:42.6]} 8. Bd3 {[%clk 0:02:39]}
8... Bd7 {[%clk 0:02:41.3]} 9. h3 {[%clk 0:02:38.4]} 9... c4 {[%clk 0:02:38.2]}
10. Bc2 {[%clk 0:02:27.6]} 10... Qb6 {[%clk 0:02:37.9]} 11. Nf3 {[%clk
0:02:15.3]} 11... Bxb5 {[%clk 0:02:36]} 12. axb5 {[%clk 0:02:16.2]} 12... Qxb5
{[%clk 0:02:36.9]} 13. O-O {[%clk 0:02:16.2]} 13... Qxb2 {[%clk 0:02:34.9]} 14.
Rb1 {[%clk 0:02:07.7]} 14... Qxc3 {[%clk 0:02:35.5]} 15. Rxb7 {[%clk 0:02:07.9]}
15... Rfe8 {[%clk 0:02:33.2]} 16. Ne5 {[%clk 0:02:03.3]} 16... Nb4 {[%clk
0:02:31]} 17. Bb1 {[%clk 0:02:03.1]} 17... a5 {[%clk 0:02:30.7]} 18. Bg5 {[%clk
0:01:57.2]} 18... Rab8 {[%clk 0:02:20.4]} 19. Ra7 {[%clk 0:01:23.2]} 19... Nd3
{[%clk 0:01:22.5]} 20. Nxd3 {[%clk 0:01:17.8]} 20... cxd3 {[%clk 0:01:23.4]} 21.
Bxd3 {[%clk 0:01:17.9]} 21... h6 {[%clk 0:01:18.4]} 22. Bh4 {[%clk 0:00:46.5]}
22... Ra8 {[%clk 0:01:15.8]} 23. Rb7 {[%clk 0:00:41.8]} 23... a4 {[%clk
0:01:11.9]} 24. Bb5 {[%clk 0:00:41.5]} 24... Reb8 {[%clk 0:00:29.5]} 25. Rxb8+
{[%clk 0:00:40.5]} 25... Rxb8 {[%clk 0:00:30.4]} 26. Bxa4 {[%clk 0:00:41]} 26...
g5 {[%clk 0:00:26.7]} 27. Bg3 {[%clk 0:00:40.2]} 27... Rb2 {[%clk 0:00:27]} 28.
Be5 {[%clk 0:00:33.2]} 28... Ne4 {[%clk 0:00:25.8]} 29. Qh5 {[%clk 0:00:26.3]}
29... Bf8 {[%clk 0:00:25.7]} 30. Be8 {[%clk 0:00:21.5]} 30... Rb7 {[%clk
0:00:25.1]} 31. h4 {[%clk 0:00:20.6]} 31... Qc8 {[%clk 0:00:19.8]} 32. Ba4
{[%clk 0:00:18]} 32... Qc4 {[%clk 0:00:17.6]} 33. Bd1 {[%clk 0:00:16.5]} 33...
f6 {[%clk 0:00:14.6]} 34. Be2 {[%clk 0:00:12.2]} 34... Qc2 {[%clk 0:00:10.8]}
35. Bh2 {[%clk 0:00:09.6]} 35... Rb2 {[%clk 0:00:06.7]} 36. Qg6+ {[%clk
0:00:05.6]} 36... Bg7 {[%clk 0:00:07]} 37. Qe8+ {[%clk 0:00:05.2]} 37... Kh7
{[%clk 0:00:07.6]} 38. Bh5 {[%clk 0:00:05.5]} 38... Nxf2 {[%clk 0:00:06.5]} 39.
Bg6+ {[%clk 0:00:06]} 39... Qxg6 {[%clk 0:00:06.3]} 40. Qxg6+ {[%clk 0:00:05.6]}
40... Kxg6 {[%clk 0:00:07.2]} 41. Rxf2 {[%clk 0:00:06.4]} 41... Rxf2 {[%clk
0:00:07.3]} 42. Kxf2 {[%clk 0:00:07.3]} 42... gxh4 {[%clk 0:00:08.2]} 43. Kf3
{[%clk 0:00:07]} 43... Kf5 {[%clk 0:00:08]} 44. Bf4 {[%clk 0:00:06.1]} 44... e5
{[%clk 0:00:08.2]} 45. dxe5 {[%clk 0:00:06.7]} 45... fxe5 {[%clk 0:00:09.1]} 46.
Bh2 {[%clk 0:00:07.3]} 46... Bf6 {[%clk 0:00:09.7]} 47. Bg1 {[%clk 0:00:07.1]}
47... e4+ {[%clk 0:00:08.9]} 48. Ke2 {[%clk 0:00:06.5]} 48... Be5 {[%clk
0:00:09.2]} 49. Bf2 {[%clk 0:00:07]} 49... Bg3 {[%clk 0:00:09.9]} 50. Bg1 {[%clk
0:00:07.5]} 50... Kg4 {[%clk 0:00:10.3]} 51. Kf1 {[%clk 0:00:07.1]} 51... h5
{[%clk 0:00:09.5]} 52. Ke2 {[%clk 0:00:07.2]} 52... h3 {[%clk 0:00:10.1]} 53.
gxh3+ {[%clk 0:00:07.4]} 53... Kxh3 {[%clk 0:00:11]} 54. Kf1 {[%clk 0:00:06.4]}
54... h4 {[%clk 0:00:11.3]} 55. Bf2 {[%clk 0:00:06.3]} 55... Bxf2 {[%clk
0:00:11.2]} 56. Kxf2 {[%clk 0:00:07.2]} 56... Kg4 {[%clk 0:00:11.9]} 57. Kg2
{[%clk 0:00:07.8]} 57... h3+ {[%clk 0:00:12.8]} 58. Kh2 {[%clk 0:00:08.4]} 58...
Kf3 {[%clk 0:00:13.7]} 59. Kxh3 {[%clk 0:00:08.8]} 59... Kxe3 {[%clk 0:00:14.6]}
60. Kg2 {[%clk 0:00:09.4]} 60... Kd2 {[%clk 0:00:15.5]} 0-1